[Event "Late-Titled-Tuesday-Blitz-April-02-2024"]
[Site "Chess.com"]
[Date "2024.04.02"]
[Round "10"]
[White "Tugrik1969"]
[Black "Oleg_Papayan"]
[Result "1/2-1/2"]
[WhiteElo "2565"]
[BlackElo "2679"]
[TimeControl "180+1"]
[EndTime "15:56:25 PDT"]
[Termination "Game drawn by 50-move rule"]

1. d4 {[%clk 0:03:00.9]} 1... d5 {[%clk 0:02:57.9]} 2. c4 {[%clk 0:03:00.9]}
2... dxc4 {[%clk 0:02:58.5]} 3. Nf3 {[%clk 0:03:00.5]} 3... Nf6 {[%clk
0:02:57.9]} 4. e3 {[%clk 0:03:00.4]} 4... e6 {[%clk 0:02:57.4]} 5. Bxc4 {[%clk
0:03:00.1]} 5... a6 {[%clk 0:02:58.1]} 6. O-O {[%clk 0:02:59.6]} 6... b5 {[%clk
0:02:58.5]} 7. Be2 {[%clk 0:02:57.3]} 7... Bb7 {[%clk 0:02:59.1]} 8. a4 {[%clk
0:02:55.5]} 8... b4 {[%clk 0:02:58.8]} 9. Ne5 {[%clk 0:02:54.3]} 9... Nbd7
{[%clk 0:02:59]} 10. Bf3 {[%clk 0:02:53.5]} 10... Qc8 {[%clk 0:02:49.3]} 11. Nd2
{[%clk 0:02:48.7]} 11... Nxe5 {[%clk 0:02:47.8]} 12. dxe5 {[%clk 0:02:48]} 12...
Nd5 {[%clk 0:02:47]} 13. Nc4 {[%clk 0:02:42.2]} 13... a5 {[%clk 0:02:44.9]} 14.
e4 {[%clk 0:02:22.8]} 14... Nb6 {[%clk 0:02:43.7]} 15. Nxb6 {[%clk 0:02:20.8]}
15... cxb6 {[%clk 0:02:44.6]} 16. Be3 {[%clk 0:02:21.2]} 16... Bc5 {[%clk
0:02:42.8]} 17. Rc1 {[%clk 0:02:15.6]} 17... Qc7 {[%clk 0:02:42.3]} 18. Bxc5
{[%clk 0:02:03.8]} 18... bxc5 {[%clk 0:02:42.4]} 19. Qd6 {[%clk 0:01:58.7]}
19... Qxd6 {[%clk 0:02:41.7]} 20. exd6 {[%clk 0:01:59.6]} 20... Rc8 {[%clk
0:02:39.8]} 21. Rfd1 {[%clk 0:01:41.1]} 21... Kd7 {[%clk 0:02:38.6]} 22. e5
{[%clk 0:01:25.1]} 22... Bxf3 {[%clk 0:02:38.3]} 23. gxf3 {[%clk 0:01:26]} 23...
Rc6 {[%clk 0:02:16.6]} 24. Rc4 {[%clk 0:01:25.4]} 24... f6 {[%clk 0:01:55.8]}
25. f4 {[%clk 0:01:13.4]} 25... Rf8 {[%clk 0:01:55.3]} 26. Kg2 {[%clk
0:01:10.5]} 26... h6 {[%clk 0:01:31.9]} 27. h4 {[%clk 0:01:08.7]} 27... Rcc8
{[%clk 0:01:19.4]} 28. Rdc1 {[%clk 0:01:03.3]} 28... fxe5 {[%clk 0:00:39.2]} 29.
fxe5 {[%clk 0:01:02.7]} 29... g5 {[%clk 0:00:06.9]} 30. hxg5 {[%clk 0:01:02.2]}
30... hxg5 {[%clk 0:00:07.8]} 31. Rxc5 {[%clk 0:01:02.8]} 31... Rxc5 {[%clk
0:00:08.7]} 32. Rxc5 {[%clk 0:01:03]} 32... Rf4 {[%clk 0:00:09.6]} 33. Rxa5
{[%clk 0:00:57.9]} 33... Rd4 {[%clk 0:00:09.3]} 34. Rb5 {[%clk 0:00:49.5]} 34...
Kc6 {[%clk 0:00:05.8]} 35. Kf3 {[%clk 0:00:36.9]} 35... Rh4 {[%clk 0:00:04.2]}
36. Ke3 {[%clk 0:00:36.3]} 36... Rf4 {[%clk 0:00:04.6]} 37. f3 {[%clk
0:00:35.2]} 37... Rc4 {[%clk 0:00:03.8]} 38. Rb8 {[%clk 0:00:30]} 38... Kd7
{[%clk 0:00:02.8]} 39. a5 {[%clk 0:00:18.8]} 39... Rc5 {[%clk 0:00:01.9]} 40.
Ke4 {[%clk 0:00:12.4]} 40... Rxa5 {[%clk 0:00:01.4]} 41. Rg8 {[%clk 0:00:12.9]}
41... b3 {[%clk 0:00:01.2]} 42. Rg7+ {[%clk 0:00:13.3]} 42... Kd8 {[%clk
0:00:01.8]} 43. Rxg5 {[%clk 0:00:13.5]} 43... Ra2 {[%clk 0:00:02.5]} 44. Rg8+
{[%clk 0:00:12.9]} 44... Kd7 {[%clk 0:00:02.7]} 45. Rg7+ {[%clk 0:00:12.2]}
45... Kd8 {[%clk 0:00:03.3]} 46. f4 {[%clk 0:00:10.1]} 46... Rxb2 {[%clk
0:00:04]} 47. f5 {[%clk 0:00:09.5]} 47... Re2+ {[%clk 0:00:04.6]} 48. Kd4 {[%clk
0:00:09.7]} 48... b2 {[%clk 0:00:05.5]} 49. Rb7 {[%clk 0:00:09.4]} 49... exf5
{[%clk 0:00:05.7]} 50. Kd5 {[%clk 0:00:08.5]} 50... Kc8 {[%clk 0:00:04.1]} 51.
Rb4 {[%clk 0:00:07.8]} 51... Kd7 {[%clk 0:00:04.7]} 52. e6+ {[%clk 0:00:06.6]}
52... Rxe6 {[%clk 0:00:05.3]} 53. Rb7+ {[%clk 0:00:05.7]} 53... Kc8 {[%clk
0:00:05.7]} 54. Rxb2 {[%clk 0:00:05.8]} 54... Re1 {[%clk 0:00:05]} 55. Kc6
{[%clk 0:00:04.9]} 55... Rc1+ {[%clk 0:00:05]} 56. Kd5 {[%clk 0:00:05.1]} 56...
f4 {[%clk 0:00:05.2]} 57. Rh2 {[%clk 0:00:04.2]} 57... f3 {[%clk 0:00:03.6]} 58.
Rf2 {[%clk 0:00:03.6]} 58... Rc3 {[%clk 0:00:03.2]} 59. Kd4 {[%clk 0:00:03.7]}
59... Ra3 {[%clk 0:00:03.1]} 60. Ke4 {[%clk 0:00:02.7]} 60... Kd7 {[%clk
0:00:03.4]} 61. Rxf3 {[%clk 0:00:03.2]} 61... Ra4+ {[%clk 0:00:04.1]} 62. Kd5
{[%clk 0:00:03.1]} 62... Ra5+ {[%clk 0:00:04.5]} 63. Kd4 {[%clk 0:00:03.5]}
63... Kxd6 {[%clk 0:00:04.1]} 64. Rf6+ {[%clk 0:00:04.1]} 64... Ke7 {[%clk
0:00:04.3]} 65. Rh6 {[%clk 0:00:04.3]} 65... Ra1 {[%clk 0:00:04.6]} 66. Rg6
{[%clk 0:00:03.9]} 66... Kf7 {[%clk 0:00:05.1]} 67. Rb6 {[%clk 0:00:03.6]} 67...
Ra4+ {[%clk 0:00:05.6]} 68. Ke5 {[%clk 0:00:03.4]} 68... Ra1 {[%clk 0:00:06.5]}
69. Rb7+ {[%clk 0:00:03.1]} 69... Kg6 {[%clk 0:00:07.1]} 70. Rb6+ {[%clk
0:00:03.6]} 70... Kg5 {[%clk 0:00:07.2]} 71. Rb5 {[%clk 0:00:04.2]} 71... Re1+
{[%clk 0:00:07.4]} 72. Kd6+ {[%clk 0:00:04.3]} 72... Kf4 {[%clk 0:00:08.3]} 73.
Rb4+ {[%clk 0:00:04.2]} 73... Kf5 {[%clk 0:00:08]} 74. Rb5+ {[%clk 0:00:04.5]}
74... Kf6 {[%clk 0:00:08.6]} 75. Rb6 {[%clk 0:00:04.5]} 75... Rd1+ {[%clk
0:00:08.7]} 76. Kc5+ {[%clk 0:00:04.1]} 76... Ke5 {[%clk 0:00:09.4]} 77. Rb4
{[%clk 0:00:04]} 77... Rc1+ {[%clk 0:00:09.6]} 78. Rc4 {[%clk 0:00:04.2]} 78...
Rb1 {[%clk 0:00:10.3]} 79. Rc2 {[%clk 0:00:04.1]} 79... Rb8 {[%clk 0:00:11]} 80.
Re2+ {[%clk 0:00:04.3]} 80... Kf4 {[%clk 0:00:11]} 81. Re7 {[%clk 0:00:04.2]}
81... Kf5 {[%clk 0:00:10.9]} 82. Re2 {[%clk 0:00:03.7]} 82... Rd8 {[%clk
0:00:10.7]} 83. Kc6 {[%clk 0:00:03.7]} 83... Kf6 {[%clk 0:00:10.5]} 84. Kc7
{[%clk 0:00:03.9]} 84... Rd1 {[%clk 0:00:11.1]} 85. Kc6 {[%clk 0:00:04.1]} 85...
Rc1+ {[%clk 0:00:11.4]} 86. Kd6 {[%clk 0:00:00.9]} 86... Rd1+ {[%clk 0:00:12.3]}
87. Kc6 {[%clk 0:00:01.1]} 87... Rd3 {[%clk 0:00:12.4]} 88. Kc7 {[%clk
0:00:01.3]} 88... Rb3 {[%clk 0:00:13]} 89. Kc6 {[%clk 0:00:01.7]} 89... Rc3+
{[%clk 0:00:13.7]} 90. Kd6 {[%clk 0:00:02]} 90... Rb3 {[%clk 0:00:14.6]} 91. Kc6
{[%clk 0:00:02.4]} 91... Kf5 {[%clk 0:00:14.7]} 92. Kc5 {[%clk 0:00:02.5]} 92...
Rc3+ {[%clk 0:00:15.2]} 93. Kd4 {[%clk 0:00:02.8]} 93... Rc1 {[%clk 0:00:16.1]}
94. Rf2+ {[%clk 0:00:03.1]} 94... Kg4 {[%clk 0:00:16.7]} 95. Rg2+ {[%clk
0:00:03.5]} 95... Kf3 {[%clk 0:00:17.3]} 96. Rd2 {[%clk 0:00:03.8]} 96... Rc8
{[%clk 0:00:17.5]} 97. Rd3+ {[%clk 0:00:04.7]} 97... Kf4 {[%clk 0:00:17.4]} 98.
Rc3 {[%clk 0:00:05]} 98... Rd8+ {[%clk 0:00:17.7]} 99. Kc4 {[%clk 0:00:05.7]}
99... Ke4 {[%clk 0:00:18.6]} 100. Kb3 {[%clk 0:00:05.8]} 100... Rb8+ {[%clk
0:00:18.9]} 101. Kc2 {[%clk 0:00:05.9]} 101... Kd4 {[%clk 0:00:19.5]} 102. Rc7
{[%clk 0:00:06.2]} 102... Rh8 {[%clk 0:00:18.4]} 103. Rd7+ {[%clk 0:00:06]}
103... Kc4 {[%clk 0:00:18.9]} 104. Rc7+ {[%clk 0:00:05.1]} 104... Kb4 {[%clk
0:00:19.4]} 105. Rb7+ {[%clk 0:00:05.5]} 105... Kc5 {[%clk 0:00:19.7]} 106. Rc7+
{[%clk 0:00:05.9]} 106... Kd4 {[%clk 0:00:20.3]} 107. Rd7+ {[%clk 0:00:06]}
107... Ke5 {[%clk 0:00:20.4]} 108. Re7+ {[%clk 0:00:06.4]} 108... Kd6 {[%clk
0:00:21]} 109. Re3 {[%clk 0:00:05.6]} 109... Rh2+ {[%clk 0:00:21]} 110. Kd1
{[%clk 0:00:05.2]} 110... Kd5 {[%clk 0:00:21.3]} 111. Rd3+ {[%clk 0:00:05.5]}
111... Ke4 {[%clk 0:00:21.6]} 112. Rd2 {[%clk 0:00:06]} 112... Rh8 {[%clk
0:00:20.3]} 113. Re2+ {[%clk 0:00:05.8]} 113... Kd3 {[%clk 0:00:20.1]} 1/2-1/2

[Event "Late-Titled-Tuesday-Blitz-April-02-2024"]
[Site "Chess.com"]
[Date "2024.04.02"]
[Round "10"]
[White "alexrustemov"]
[Black "djano"]
[Result "1/2-1/2"]
[WhiteElo "2856"]
[BlackElo "2656"]
[TimeControl "180+1"]
[EndTime "15:56:31 PDT"]
[Termination "Game drawn by 50-move rule"]

1. d4 {[%clk 0:03:00.9]} 1... b6 {[%clk 0:03:00.3]} 2. Nf3 {[%clk 0:02:58.2]}
2... Bb7 {[%clk 0:03:00.6]} 3. g3 {[%clk 0:02:56.9]} 3... Bxf3 {[%clk
0:02:59.9]} 4. exf3 {[%clk 0:02:56.8]} 4... Nf6 {[%clk 0:02:59.7]} 5. f4 {[%clk
0:02:52.7]} 5... d5 {[%clk 0:02:58.7]} 6. Nd2 {[%clk 0:02:51.8]} 6... e6 {[%clk
0:02:56.9]} 7. Nf3 {[%clk 0:02:52.2]} 7... Bd6 {[%clk 0:02:51.1]} 8. Bd3 {[%clk
0:02:49.9]} 8... O-O {[%clk 0:02:50.9]} 9. O-O {[%clk 0:02:49.3]} 9... c5 {[%clk
0:02:49.8]} 10. c3 {[%clk 0:02:49.2]} 10... Nc6 {[%clk 0:02:49.9]} 11. Be3
{[%clk 0:02:48.5]} 11... cxd4 {[%clk 0:02:41.1]} 12. Nxd4 {[%clk 0:02:45.9]}
12... Nxd4 {[%clk 0:02:40.9]} 13. Bxd4 {[%clk 0:02:46]} 13... Bc5 {[%clk
0:02:40.9]} 14. Bc2 {[%clk 0:02:39.9]} 14... Rc8 {[%clk 0:02:35.1]} 15. Re1
{[%clk 0:02:38]} 15... Qc7 {[%clk 0:02:29]} 16. Bxf6 {[%clk 0:02:30.4]} 16...
gxf6 {[%clk 0:02:28.3]} 17. f5 {[%clk 0:02:16.1]} 17... e5 {[%clk 0:02:18.4]}
18. Qxd5 {[%clk 0:02:14.9]} 18... Rfd8 {[%clk 0:02:09.9]} 19. Qf3 {[%clk
0:02:11.2]} 19... Qc6 {[%clk 0:01:54.5]} 20. Be4 {[%clk 0:02:05.3]} 20... Qb5
{[%clk 0:01:51.8]} 21. Re2 {[%clk 0:02:04.3]} 21... Kf8 {[%clk 0:01:31.9]} 22.
Kg2 {[%clk 0:02:03.5]} 22... Ke7 {[%clk 0:01:29.8]} 23. a4 {[%clk 0:01:56.6]}
23... Qc4 {[%clk 0:01:26.8]} 24. Bc2 {[%clk 0:01:39.6]} 24... Qd5 {[%clk
0:01:23.6]} 25. Qxd5 {[%clk 0:01:30.1]} 25... Rxd5 {[%clk 0:01:24.5]} 26. Be4
{[%clk 0:01:23.6]} 26... Rd7 {[%clk 0:01:19.6]} 27. a5 {[%clk 0:01:09]} 27...
Rcd8 {[%clk 0:01:16.1]} 28. b4 {[%clk 0:01:06.4]} 28... Bd6 {[%clk 0:01:11.7]}
29. axb6 {[%clk 0:01:06.1]} 29... axb6 {[%clk 0:01:11.6]} 30. Ra6 {[%clk
0:01:06.4]} 30... Rc8 {[%clk 0:01:05.5]} 31. Rxb6 {[%clk 0:00:58.1]} 31... Rxc3
{[%clk 0:01:05.4]} 32. b5 {[%clk 0:00:57.4]} 32... Bc5 {[%clk 0:00:51]} 33. Ra6
{[%clk 0:00:52.2]} 33... Rb3 {[%clk 0:00:45.7]} 34. Bc6 {[%clk 0:00:50.8]} 34...
Rd4 {[%clk 0:00:38.9]} 35. Raa2 {[%clk 0:00:44.7]} 35... Rdb4 {[%clk 0:00:34]}
36. Rad2 {[%clk 0:00:43.6]} 36... Bd4 {[%clk 0:00:34.3]} 37. Rc2 {[%clk
0:00:40.3]} 37... Kd6 {[%clk 0:00:28.2]} 38. Be8 {[%clk 0:00:38.6]} 38... Ke7
{[%clk 0:00:25.6]} 39. Bc6 {[%clk 0:00:37.9]} 39... Kd6 {[%clk 0:00:26.2]} 40.
Kh3 {[%clk 0:00:38.4]} 40... h6 {[%clk 0:00:18]} 41. Ra2 {[%clk 0:00:38.1]}
41... Rb2 {[%clk 0:00:10.9]} 42. Raxb2 {[%clk 0:00:30]} 42... Rxb2 {[%clk
0:00:11.8]} 43. Rxb2 {[%clk 0:00:29.3]} 43... Bxb2 {[%clk 0:00:12.7]} 44. Kg4
{[%clk 0:00:25]} 44... Bd4 {[%clk 0:00:12.8]} 45. f3 {[%clk 0:00:24.9]} 45...
Ke7 {[%clk 0:00:13.1]} 46. Bd5 {[%clk 0:00:23.8]} 46... Bg1 {[%clk 0:00:10.9]}
47. h4 {[%clk 0:00:21.1]} 47... Bf2 {[%clk 0:00:10.9]} 48. Kh3 {[%clk
0:00:20.4]} 48... Kf8 {[%clk 0:00:09.3]} 49. Kg2 {[%clk 0:00:20.5]} 49... Be1
{[%clk 0:00:09.8]} 50. b6 {[%clk 0:00:15.7]} 50... Ba5 {[%clk 0:00:09.6]} 51. b7
{[%clk 0:00:15.6]} 51... Bc7 {[%clk 0:00:10.2]} 52. Kf2 {[%clk 0:00:15]} 52...
Ke7 {[%clk 0:00:04.2]} 53. g4 {[%clk 0:00:14.1]} 53... Bb8 {[%clk 0:00:02.9]}
54. Ke2 {[%clk 0:00:14.3]} 54... Kf8 {[%clk 0:00:01.9]} 55. Kd3 {[%clk
0:00:14.5]} 55... Ke7 {[%clk 0:00:02.5]} 56. Kc4 {[%clk 0:00:14.8]} 56... Kd6
{[%clk 0:00:02.9]} 57. Bxf7 {[%clk 0:00:14.5]} 57... Ba7 {[%clk 0:00:03.4]} 58.
Bd5 {[%clk 0:00:11.7]} 58... Kc7 {[%clk 0:00:03]} 59. Be4 {[%clk 0:00:11]} 59...
Kd6 {[%clk 0:00:03.4]} 60. Kb5 {[%clk 0:00:11.1]} 60... Kc7 {[%clk 0:00:03.9]}
61. Bd5 {[%clk 0:00:05.3]} 61... Kd6 {[%clk 0:00:03.8]} 62. Ka6 {[%clk
0:00:04.9]} 62... Bb8 {[%clk 0:00:03.3]} 63. Be4 {[%clk 0:00:05.3]} 63... Kc7
{[%clk 0:00:02.4]} 64. Ka5 {[%clk 0:00:05.2]} 64... Ba7 {[%clk 0:00:02.6]} 65.
Kb5 {[%clk 0:00:05.4]} 65... Bf2 {[%clk 0:00:02.4]} 66. Bd5 {[%clk 0:00:05]}
66... Bxh4 {[%clk 0:00:02]} 67. Be4 {[%clk 0:00:02.1]} 67... Bf2 {[%clk
0:00:01.3]} 68. Kc4 {[%clk 0:00:02.6]} 68... Kd6 {[%clk 0:00:01.6]} 69. Bd5
{[%clk 0:00:02.2]} 69... Kc7 {[%clk 0:00:01.9]} 70. Be4 {[%clk 0:00:01.9]} 70...
Ba7 {[%clk 0:00:02.4]} 71. Kc3 {[%clk 0:00:02.3]} 71... Kd6 {[%clk 0:00:02.5]}
72. Kd3 {[%clk 0:00:03.1]} 72... Bb8 {[%clk 0:00:02.1]} 73. Ke2 {[%clk
0:00:03.7]} 73... Ke7 {[%clk 0:00:02.1]} 74. Kf2 {[%clk 0:00:04.2]} 74... Kf8
{[%clk 0:00:02.5]} 75. Kg3 {[%clk 0:00:04.6]} 75... Kg7 {[%clk 0:00:02.8]} 76.
Bd5 {[%clk 0:00:05]} 76... Ba7 {[%clk 0:00:03.2]} 77. Kg2 {[%clk 0:00:05.2]}
77... Bb8 {[%clk 0:00:03.1]} 78. Kf1 {[%clk 0:00:05.7]} 78... Kf8 {[%clk
0:00:03.7]} 79. Ke2 {[%clk 0:00:06.6]} 79... Ke7 {[%clk 0:00:04.2]} 80. Kd3
{[%clk 0:00:07.3]} 80... Kd6 {[%clk 0:00:04.7]} 81. Be4 {[%clk 0:00:08.2]} 81...
Kc5 {[%clk 0:00:05]} 82. Kc3 {[%clk 0:00:08.3]} 82... Ba7 {[%clk 0:00:04.9]} 83.
Kb3 {[%clk 0:00:08.7]} 83... Kb5 {[%clk 0:00:04.7]} 84. Bd3+ {[%clk 0:00:08.4]}
84... Kc5 {[%clk 0:00:05.1]} 85. Ka4 {[%clk 0:00:08.4]} 85... Kb6 {[%clk
0:00:04.6]} 86. Be4 {[%clk 0:00:08.6]} 86... Bb8 {[%clk 0:00:04.4]} 87. Kb4
{[%clk 0:00:08.8]} 87... Kc7 {[%clk 0:00:03.8]} 88. Kc5 {[%clk 0:00:09.2]} 88...
Ba7+ {[%clk 0:00:03.5]} 89. Kd5 {[%clk 0:00:09.4]} 89... Kd7 {[%clk 0:00:04.2]}
90. Bd3 {[%clk 0:00:09.3]} 90... Bb8 {[%clk 0:00:03.6]} 91. Bb5+ {[%clk
0:00:09.3]} 91... Ke7 {[%clk 0:00:03.1]} 92. Kc6 {[%clk 0:00:09.4]} 92... Kd8
{[%clk 0:00:02.7]} 93. Bc4 {[%clk 0:00:08.7]} 93... Ke7 {[%clk 0:00:02.6]} 94.
Bd5 {[%clk 0:00:08.9]} 94... Kd8 {[%clk 0:00:02.8]} 95. Be4 {[%clk 0:00:09]}
95... Ke7 {[%clk 0:00:03.2]} 96. Bd3 {[%clk 0:00:09.1]} 96... Kd8 {[%clk
0:00:03.7]} 97. Be2 {[%clk 0:00:08.7]} 97... Ke7 {[%clk 0:00:04.3]} 98. Kd5
{[%clk 0:00:08.9]} 98... Bc7 {[%clk 0:00:03.9]} 99. Bb5 {[%clk 0:00:08.8]} 99...
Bb8 {[%clk 0:00:04.3]} 100. Kc5 {[%clk 0:00:09.1]} 100... Kd8 {[%clk 0:00:03.7]}
101. Kc6 {[%clk 0:00:08.9]} 101... Ke7 {[%clk 0:00:03.8]} 102. Bc4 {[%clk
0:00:09.1]} 102... Kd8 {[%clk 0:00:04]} 103. Be6 {[%clk 0:00:08.7]} 103... Ke7
{[%clk 0:00:04.4]} 104. Bc8 {[%clk 0:00:08.1]} 104... Kd8 {[%clk 0:00:04.5]}
105. Kd5 {[%clk 0:00:08.1]} 105... Ke7 {[%clk 0:00:04.8]} 106. Ke4 {[%clk
0:00:07.9]} 106... Bc7 {[%clk 0:00:05.1]} 107. Ke3 {[%clk 0:00:07.9]} 107...
Bb6+ {[%clk 0:00:05]} 108. Kd3 {[%clk 0:00:08]} 108... Ba7 {[%clk 0:00:05]} 109.
Be6 {[%clk 0:00:07.2]} 109... Kd6 {[%clk 0:00:04.9]} 110. Kc4 {[%clk 0:00:07.3]}
110... Bb8 {[%clk 0:00:03.9]} 111. Bf7 {[%clk 0:00:07]} 111... Ba7 {[%clk
0:00:03.6]} 112. Kb5 {[%clk 0:00:06.9]} 112... Kc7 {[%clk 0:00:04]} 113. Ka6
{[%clk 0:00:06.7]} 113... Bb8 {[%clk 0:00:04.5]} 114. Bd5 {[%clk 0:00:06.7]}
114... Kd6 {[%clk 0:00:04.4]} 115. Be4 {[%clk 0:00:06.5]} 115... Kc7 {[%clk
0:00:04.8]} 116. Kb5 {[%clk 0:00:06.7]} 116... Ba7 {[%clk 0:00:04.6]} 1/2-1/2

[Event "Late-Titled-Tuesday-Blitz-April-02-2024"]
[Site "Chess.com"]
[Date "2024.04.02"]
[Round "11"]
[White "ChessBrainiacOnTwitch"]
[Black "sacrifoice"]
[Result "0-1"]
[WhiteElo "2776"]
[BlackElo "2339"]
[TimeControl "180+1"]
[EndTime "15:59:53 PDT"]
[Termination "sacrifoice won by resignation"]

1. e4 {[%clk 0:03:00.9]} 1... c5 {[%clk 0:02:59.7]} 2. Nf3 {[%clk 0:03:01.2]}
2... d6 {[%clk 0:03:00]} 3. Nc3 {[%clk 0:02:58.6]} 3... Nf6 {[%clk 0:02:59.9]}
4. e5 {[%clk 0:02:59.1]} 4... dxe5 {[%clk 0:02:59.6]} 5. Nxe5 {[%clk 0:03:00]}
5... e6 {[%clk 0:02:57.3]} 6. Bb5+ {[%clk 0:03:00.1]} 6... Nbd7 {[%clk
0:02:51.6]} 7. d4 {[%clk 0:03:00.4]} 7... cxd4 {[%clk 0:02:50.6]} 8. Qxd4 {[%clk
0:03:01.3]} 8... Be7 {[%clk 0:02:49.7]} 9. Bg5 {[%clk 0:02:57.6]} 9... O-O
{[%clk 0:02:41.2]} 10. O-O-O {[%clk 0:02:50.9]} 10... Nxe5 {[%clk 0:02:33.9]}
11. Qxe5 {[%clk 0:02:51.8]} 11... Qa5 {[%clk 0:02:30.7]} 12. Qf4 {[%clk
0:02:37.3]} 12... a6 {[%clk 0:02:25.6]} 13. Bxf6 {[%clk 0:01:57]} 13... Bxf6
{[%clk 0:02:21.1]} 14. Bc4 {[%clk 0:01:27.8]} 14... Bg5 {[%clk 0:02:20.5]} 0-1

[Event "Late-Titled-Tuesday-Blitz-April-02-2024"]
[Site "Chess.com"]
[Date "2024.04.02"]
[Round "11"]
[White "Flaccidmoves"]
[Black "Caracal3000"]
[Result "1-0"]
[WhiteElo "2427"]
[BlackElo "2526"]
[TimeControl "180+1"]
[EndTime "16:00:19 PDT"]
[Termination "Flaccidmoves won by resignation"]

1. c4 {[%clk 0:02:58.8]} 1... e6 {[%clk 0:03:00.3]} 2. g3 {[%clk 0:02:54.9]}
2... d5 {[%clk 0:03:01]} 3. Bg2 {[%clk 0:02:54.7]} 3... Nf6 {[%clk 0:03:01.4]}
4. Nf3 {[%clk 0:02:54.4]} 4... Be7 {[%clk 0:03:02.1]} 5. O-O {[%clk 0:02:54.2]}
5... O-O {[%clk 0:03:02.8]} 6. d4 {[%clk 0:02:54.7]} 6... dxc4 {[%clk
0:03:03.4]} 7. Qc2 {[%clk 0:02:54.6]} 7... a6 {[%clk 0:03:03.6]} 8. a4 {[%clk
0:02:54.1]} 8... Bd7 {[%clk 0:03:03.9]} 9. Rd1 {[%clk 0:02:41.2]} 9... Bc6
{[%clk 0:03:03.6]} 10. Qxc4 {[%clk 0:02:38.8]} 10... Nbd7 {[%clk 0:03:03.7]} 11.
a5 {[%clk 0:02:34.7]} 11... Rc8 {[%clk 0:02:58]} 12. Nc3 {[%clk 0:02:30]} 12...
Ne4 {[%clk 0:02:54.1]} 13. d5 {[%clk 0:02:00.1]} 13... Nxc3 {[%clk 0:02:46.2]}
14. dxc6 {[%clk 0:02:00]} 14... Nxd1 {[%clk 0:02:41.8]} 15. cxd7 {[%clk
0:01:59.4]} 15... Qxd7 {[%clk 0:02:40.7]} 16. Ne5 {[%clk 0:01:42.7]} 16... Qb5
{[%clk 0:02:22.9]} 17. Qxb5 {[%clk 0:01:38.7]} 17... axb5 {[%clk 0:02:23.8]} 18.
Bxb7 {[%clk 0:01:38.8]} 18... Rb8 {[%clk 0:02:18.6]} 19. a6 {[%clk 0:01:38.4]}
19... Bf6 {[%clk 0:02:18.9]} 20. Nc6 {[%clk 0:01:27.2]} 20... Bxb2 {[%clk
0:02:01.1]} 21. Bxb2 {[%clk 0:01:25.9]} 21... Nxb2 {[%clk 0:02:02]} 22. Nxb8
{[%clk 0:01:25.9]} 22... Rxb8 {[%clk 0:02:00.3]} 23. a7 {[%clk 0:01:25.9]} 1-0

[Event "Late-Titled-Tuesday-Blitz-April-02-2024"]
[Site "Chess.com"]
[Date "2024.04.02"]
[Round "11"]
[White "Slovineanu"]
[Black "carloseduar100"]
[Result "0-1"]
[WhiteElo "2465"]
[BlackElo "2262"]
[TimeControl "180+1"]
[EndTime "16:00:33 PDT"]
[Termination "carloseduar100 won by resignation"]

1. d4 {[%clk 0:02:59.8]} 1... d5 {[%clk 0:02:33]} 2. Nf3 {[%clk 0:02:58.3]} 2...
e6 {[%clk 0:02:29.9]} 3. c4 {[%clk 0:02:57.9]} 3... a6 {[%clk 0:02:25.7]} 4. e3
{[%clk 0:02:57.9]} 4... dxc4 {[%clk 0:02:23.3]} 5. Bxc4 {[%clk 0:02:57.2]} 5...
b5 {[%clk 0:02:24.2]} 6. Bd3 {[%clk 0:02:54.2]} 6... Bb7 {[%clk 0:02:25.1]} 7.
O-O {[%clk 0:02:53.4]} 7... Nf6 {[%clk 0:02:25.4]} 8. Nbd2 {[%clk 0:02:53.1]}
8... Bd6 {[%clk 0:02:25.8]} 9. e4 {[%clk 0:02:47.5]} 9... Be7 {[%clk 0:02:25.7]}
10. Re1 {[%clk 0:02:43.8]} 10... c5 {[%clk 0:02:25.6]} 11. e5 {[%clk 0:02:44]}
11... Nd5 {[%clk 0:02:24.8]} 12. Ne4 {[%clk 0:02:40.9]} 12... cxd4 {[%clk
0:02:16]} 13. Bg5 {[%clk 0:02:40.2]} 13... O-O {[%clk 0:02:07.7]} 14. a4 {[%clk
0:02:33.5]} 14... h6 {[%clk 0:02:04.1]} 15. Bxe7 {[%clk 0:02:31]} 15... Nxe7
{[%clk 0:02:04.1]} 16. axb5 {[%clk 0:02:19]} 16... axb5 {[%clk 0:02:05]} 17.
Rxa8 {[%clk 0:02:18.3]} 17... Bxa8 {[%clk 0:02:04.8]} 18. Bxb5 {[%clk
0:02:18.1]} 18... Nf5 {[%clk 0:02:00.7]} 19. g4 {[%clk 0:01:57.3]} 19... Nh4
{[%clk 0:01:58.5]} 20. Nxd4 {[%clk 0:01:48.7]} 20... Qxd4 {[%clk 0:01:57]} 21.
Qxd4 {[%clk 0:01:41.1]} 21... Nf3+ {[%clk 0:01:56.9]} 22. Kg2 {[%clk 0:01:38.7]}
22... Nxd4 {[%clk 0:01:57.8]} 23. Bd3 {[%clk 0:01:33.3]} 23... Nd7 {[%clk
0:01:56.4]} 24. f4 {[%clk 0:01:30.4]} 24... Nc5 {[%clk 0:01:53.1]} 25. Bc2
{[%clk 0:01:30.6]} 25... Nxc2 {[%clk 0:01:52.4]} 0-1

[Event "Late-Titled-Tuesday-Blitz-April-02-2024"]
[Site "Chess.com"]
[Date "2024.04.02"]
[Round "11"]
[White "WilsonPalencia21"]
[Black "GaiozNigalidze"]
[Result "0-1"]
[WhiteElo "2601"]
[BlackElo "2724"]
[TimeControl "180+1"]
[EndTime "16:01:11 PDT"]
[Termination "GaiozNigalidze won on time"]

1. d4 {[%clk 0:02:39.6]} 1... Nf6 {[%clk 0:02:54.4]} 2. c4 {[%clk 0:02:40]} 2...
c5 {[%clk 0:02:54.8]} 3. d5 {[%clk 0:02:40.2]} 3... b5 {[%clk 0:02:55.1]} 4.
cxb5 {[%clk 0:02:41.1]} 4... a6 {[%clk 0:02:55.7]} 5. bxa6 {[%clk 0:02:42]} 5...
e6 {[%clk 0:02:56.1]} 6. Nc3 {[%clk 0:02:40.2]} 6... exd5 {[%clk 0:02:56.3]} 7.
Nxd5 {[%clk 0:02:41.1]} 7... Be7 {[%clk 0:02:56.6]} 8. Nf3 {[%clk 0:02:40.6]}
8... O-O {[%clk 0:02:56.6]} 9. e3 {[%clk 0:02:40]} 9... Nxd5 {[%clk 0:02:54.2]}
10. Qxd5 {[%clk 0:02:38.7]} 10... Nc6 {[%clk 0:02:54.3]} 11. Bc4 {[%clk
0:02:29.2]} 11... Bxa6 {[%clk 0:02:54.6]} 12. Bxa6 {[%clk 0:02:27.8]} 12... Qa5+
{[%clk 0:02:54.1]} 13. Qd2 {[%clk 0:02:23.2]} 13... Qxa6 {[%clk 0:02:54]} 14.
Qe2 {[%clk 0:02:22.7]} 14... Nb4 {[%clk 0:02:43.6]} 15. Qxa6 {[%clk 0:02:19.3]}
15... Rxa6 {[%clk 0:02:44.3]} 16. Ke2 {[%clk 0:02:16.6]} 16... Nxa2 {[%clk
0:02:43.8]} 17. Bd2 {[%clk 0:02:16]} 17... Rb8 {[%clk 0:02:38.8]} 18. Rhb1
{[%clk 0:02:07.4]} 18... Bf6 {[%clk 0:02:37.2]} 19. Bc3 {[%clk 0:02:01]} 19...
Bxc3 {[%clk 0:02:31.4]} 20. bxc3 {[%clk 0:01:56.1]} 20... Rxb1 {[%clk
0:02:32.3]} 21. Rxb1 {[%clk 0:01:53.3]} 21... Nxc3+ {[%clk 0:02:32.2]} 0-1